bitfinex/quotes_ETHUSD_20241123
["timestamp","ask_amount","ask_price","bid_price","bid_amount"]
[1732388778635,0.27281452,3417.8,3416.6,1.1089]
[1732388778813,0.27281452,3417.7,3416.6,1.1089]
[1732388779013,0.27281452,3417.6,3416.6,1.1089]
[1732388779217,0.27281452,3417.5,3416.6,1.1089]
[1732388779437,0.07218598,3417.6,3416.6,1.1089]
[1732388779635,0.07207283,3417.4,3416.6,1.1089]
[1732388779835,0.07212941,3417.5,3416.6,1.1089]
[1732388780156,0.07212941,3417.5,3416.3,0.40874399]
[1732388780157,0.07210469,3417.4,3416.8,0.2916]
[1732388780337,0.7193,3417.7,3416.8,0.2916]
[1732388780526,0.27292282,3417.6,3417.0,0.8173]
[1732388780731,0.27292282,3417.5,3417.0,0.8173]
[1732388780928,0.07216127,3417.5,3417.0,0.8173]
[1732388781135,0.7193,3418.0,3417.0,0.8173]
[1732388781456,0.07210469,3417.4,3417.0,0.8173]
[1732388781643,0.7193,3418.0,3417.0,0.8173]
[1732388781964,0.27295193,3417.9,3417.0,0.8173]
[1732388782267,0.27295193,3417.8,3417.0,0.8173]
[1732388782419,0.07233099,3417.8,3417.0,0.8173]
[1732388782622,0.27295193,3417.7,3417.0,0.8173]
[1732388782855,0.27295193,3417.6,3417.0,0.8173]
[1732388783052,0.07221785,3417.6,3417.0,0.8173]
[1732388783361,0.7193,3418.0,3417.0,0.8173]
[1732388783564,0.07216127,3417.5,3417.0,0.8173]
[1732388783757,0.7193,3418.0,3417.0,0.8173]
[1732388784061,0.07210469,3417.4,3417.0,0.8173]
[1732388784260,0.7193,3418.0,3417.0,0.8173]
[1732388784431,0.07204811,3417.3,3417.0,0.8173]
[1732388784620,0.7193,3418.0,3417.0,0.8173]
[1732388784826,0.07199153,3417.2,3417.0,0.8173]
[1732388785025,0.7193,3418.0,3417.0,0.8173]
[1732388785254,0.27288334,3417.9,3417.0,0.8173]
[1732388785555,0.27288334,3417.8,3417.0,0.8173]
[1732388785761,0.27288334,3417.7,3417.0,0.8173]
[1732388786052,0.07227442,3417.7,3417.1,0.02926285]
[1732388786257,0.07227442,3417.7,3417.2,0.7511]
[1732388786458,0.7193,3418.3,3417.2,0.7511]
[1732388786671,0.07221785,3417.6,3417.0,0.2916]
[1732388786956,1.148534,3418.3,3417.3,0.2916]
[1732388787156,0.57304,3418.5,3417.3,0.2916]
[1732388787157,0.07216127,3417.5,3417.4,1.1201]
[1732388787463,0.7193,3418.9,3417.8,0.8285]
[1732388787630,0.27274756,3418.8,3417.8,0.8285]
[1732388787832,0.27274756,3418.7,3417.9,0.2916]
[1732388788022,0.27274756,3418.6,3417.9,0.2916]
[1732388788221,0.7193,3418.9,3418.0,0.8285]
[1732388788464,0.07277436,3418.5,3418.0,1.1201]
[1732388788670,0.7193,3419.7,3418.1,0.85775593]
[1732388788827,0.07274965,3418.4,3418.3,1.1201]
[1732388789024,1.59065284,3419.6,3418.3,0.8285]
[1732388789025,1.31808862,3419.6,3418.3,0.8285]
[1732388789356,0.34572907,3419.5,3418.3,0.8285]
[1732388789523,0.2723576,3419.4,3418.5,0.8285]
[1732388789724,0.07337147,3419.5,3418.7,0.8285]
[1732388790018,0.7193,3420.0,3418.9,0.8285]
[1732388790224,0.98317,3419.9,3418.9,0.8285]
[1732388791922,0.0712898,3419.8,3418.9,0.8285]
[1732388792745,0.0712898,3419.8,3418.5,0.40874399]
[1732388792746,0.0712898,3419.8,3419.0,0.85774433]
[1732388792956,0.0712898,3419.8,3419.0,0.8285]
[1732388793257,0.98317,3419.9,3419.0,0.8285]
[1732388793758,0.0712898,3419.8,3419.0,0.8285]
[1732388793932,0.98317,3419.9,3419.0,0.8285]
[1732388794135,0.0712333,3419.7,3419.0,0.8285]
[1732388794321,0.7193,3419.6,3419.0,0.8285]
[1732388794758,0.79047679,3419.6,3419.0,0.8285]
[1732388795823,0.96784147,3419.6,3419.0,0.8285]
[1732388796053,0.07117679,3419.6,3419.0,0.8285]
[1732388796570,0.8284,3419.9,3419.1,1.23724399]
[1732388796723,0.8284,3419.9,3419.2,0.8285]
[1732388797947,0.8284,3419.9,3419.4,0.81]
[1732388798152,0.8284,3419.9,3419.5,0.8392401]
[1732388798325,0.8284,3419.9,3419.6,0.81]
[1732388798928,0.7193,3421.3,3419.6,0.81]
[1732388799130,0.7193,3421.3,3419.8,0.81]
[1732388799131,1.37165541,3421.3,3419.8,0.81]
[1732388799429,0.81,3420.6,3419.8,0.81]
[1732388800029,0.06946174,3420.5,3419.8,0.81]
[1732388800476,0.22933791,3420.5,3419.8,0.81]
[1732388807880,0.06946174,3420.5,3419.8,1.1016]
[1732388808058,0.06946174,3420.5,3419.9,0.8043]
[1732388809086,0.06946174,3420.5,3420.1,0.0175792]
[1732388810464,0.06946174,3420.5,3420.2,0.8043]
[1732388813582,0.06946174,3420.5,3420.2,1.0959]
[1732388814454,0.06946174,3420.5,3420.3,0.8043]
[1732388814872,0.81,3420.6,3420.3,0.8043]
[1732388820893,0.81,3420.6,3420.1,0.0175792]
[1732388821200,0.7193,3420.4,3420.1,0.0175792]
[1732388821370,0.33954063,3420.3,3420.1,0.0175792]
[1732388821698,0.27263831,3420.2,3420.1,0.0175792]
[1732388821867,0.06690232,3420.3,3420.1,0.0175792]
[1732388822076,0.3395234,3420.2,3420.1,0.0175792]
[1732388822386,0.06684583,3420.2,3420.1,0.0175792]
[1732388822578,0.27268659,3420.2,3420.1,0.0175792]
[1732388822807,0.33946652,3420.2,3420.1,0.0175792]
[1732388823096,0.06677993,3420.2,3420.1,0.0175792]
[1732388823395,0.27270111,3420.3,3420.1,0.0175792]
[1732388823608,0.06677993,3420.2,3420.1,0.0175792]
[1732388824110,0.3394798,3420.2,3420.1,0.0175792]
[1732388824517,0.33951327,3420.2,3420.1,0.0175792]
[1732388824971,0.06677993,3420.2,3420.1,0.8120792]
[1732388825173,0.81,3420.6,3420.1,0.8120792]
[1732388825374,0.21988516,3420.5,3420.1,0.8120792]
[1732388825583,0.49268663,3420.5,3420.1,0.8120792]
[1732388825779,0.21988516,3420.5,3420.1,0.8120792]
[1732388826014,0.21988516,3420.5,3420.1,0.0175792]
[1732388826321,0.27281733,3420.4,3420.1,0.0175792]
[1732388826608,0.33965606,3420.3,3420.1,0.0175792]
[1732388826814,0.06683873,3420.3,3420.1,0.0175792]
[1732388826975,0.81,3420.6,3420.1,0.0175792]
[1732388827178,0.33984311,3420.5,3420.1,0.0175792]
[1732388827498,0.27287986,3420.4,3420.1,0.0175792]
[1732388827704,0.45979417,3420.4,3420.1,0.0175792]
[1732388827914,0.33973015,3420.3,3420.1,0.0175792]
[1732388828090,0.06685029,3420.3,3420.1,0.0175792]
[1732388830218,0.27289779,3420.2,3420.1,0.0175792]
[1732388830374,0.33969159,3420.2,3420.1,0.0175792]
[1732388830580,0.0667938,3420.2,3420.1,0.0175792]
[1732388830807,0.18691431,3420.4,3420.1,0.0175792]
[1732388830991,0.3397439,3420.3,3420.1,0.0175792]
[1732388831202,0.06685029,3420.3,3420.1,0.0175792]
[1732388832856,0.27289752,3420.2,3420.1,0.0175792]
[1732388833020,0.33970636,3420.2,3420.1,0.0175792]
[1732388833319,0.06680884,3420.2,3420.1,0.0175792]
[1732388833681,0.81,3420.6,3420.1,0.0175792]
[1732388834014,0.7193,3420.4,3420.1,0.0175792]
[1732388834217,0.27288829,3420.3,3420.1,0.0175792]
[1732388834418,0.33969713,3420.2,3420.1,0.0175792]
[1732388835192,0.88969713,3420.2,3420.1,0.0175792]
[1732388835486,7.53279713,3420.2,3420.1,0.0175792]
[1732388835721,8.58850267,3420.2,3420.1,0.0175792]
[1732388836194,8.58850214,3420.2,3420.1,0.0175792]
[1732388836789,8.58850214,3420.2,3418.5,1.0914]
[1732388836790,3.0,3419.6,3418.5,1.0914]
[1732388837023,3.0,3419.9,3418.5,1.0914]
[1732388837024,1.2693,3419.4,3418.5,1.0914]
[1732388837227,0.55,3419.2,3418.5,0.7999]
[1732388837392,0.33908807,3419.1,3418.5,0.7999]
[1732388837590,0.27294359,3419.0,3418.5,0.7999]
[1732388837793,0.06600829,3418.9,3418.5,0.7999]
[1732388838033,0.7193,3419.4,3418.5,0.7999]
[1732388838212,0.33881436,3419.3,3418.5,0.7999]
[1732388838410,0.27258055,3419.2,3418.5,0.7999]
[1732388838621,0.06612076,3419.1,3418.5,0.7999]
[1732388838941,0.7193,3419.4,3418.5,0.7999]
[1732388839139,0.06606424,3419.0,3418.5,0.7999]
[1732388839341,0.7193,3419.4,3418.5,0.7999]
[1732388839516,0.06600771,3418.9,3418.5,0.7999]
[1732388839840,0.7193,3419.4,3418.5,0.7999]
[1732388839841,0.06595118,3418.8,3418.5,0.7999]
[1732388840046,0.7193,3419.4,3418.5,0.7999]
[1732388840245,0.3385542,3419.3,3418.5,0.7999]
[1732388840449,0.27232039,3419.2,3418.5,0.7999]
[1732388840742,0.06611903,3419.1,3418.5,0.7999]
[1732388841056,0.7193,3419.4,3418.5,0.7999]
[1732388841223,0.33847411,3419.3,3418.5,0.7999]
[1732388841410,0.06623207,3419.3,3418.5,0.7999]
[1732388841611,0.27217592,3419.2,3418.5,0.7999]
[1732388841921,0.06611903,3419.1,3418.5,0.7999]
[1732388842323,0.55,3419.3,3418.5,0.7999]
[1732388842547,0.06606135,3419.0,3418.5,0.7999]
[1732388842883,0.06600482,3418.9,3418.5,0.7999]
[1732388843353,0.55,3419.3,3418.5,0.7999]
[1732388843520,0.06594828,3418.8,3418.5,0.7999]
[1732388843844,0.06589175,3418.7,3418.5,0.7999]
[1732388844046,0.55,3419.3,3418.5,0.7999]
[1732388844244,0.06617439,3419.2,3418.5,0.7999]
[1732388845937,0.7193,3419.6,3418.5,0.7999]
[1732388846109,0.06611787,3419.1,3418.5,0.7999]
[1732388846316,0.7193,3419.6,3418.5,0.7999]
[1732388846623,0.27208562,3419.5,3418.5,0.7999]
[1732388846830,0.33837848,3419.4,3418.5,0.7999]
[1732388847023,0.06628743,3419.4,3418.5,0.7999]
[1732388847268,0.82213215,3419.3,3418.5,0.7999]
[1732388847556,0.06617439,3419.2,3418.5,0.7999]
[1732388847724,0.33831293,3419.2,3418.5,0.7999]
[1732388847929,0.06617439,3419.2,3418.5,0.7999]
[1732388853568,0.55,3419.0,3418.3,0.35969009]
[1732388853723,0.7193,3418.7,3418.3,0.35969009]
[1732388854058,0.33801278,3418.6,3418.3,0.35969009]
[1732388854369,0.27224984,3418.5,3418.3,0.35969009]
[1732388854860,0.06564985,3418.4,3418.3,0.35969009]
[1732388855061,0.06564985,3418.4,3417.9,1.0508]
[1732388855062,0.33789969,3418.4,3417.9,0.7593]
[1732388855362,0.06564985,3418.4,3417.9,0.7593]
[1732388855759,0.7193,3418.7,3417.9,0.7593]
[1732388855927,0.0655933,3418.3,3417.9,0.7593]
[1732388856131,0.7193,3418.7,3417.9,0.7593]
[1732388856328,0.06553675,3418.2,3417.9,0.7593]
[1732388856555,0.7193,3418.7,3417.9,0.7593]
[1732388856726,0.06548019,3418.1,3417.5,0.7593]
[1732388856926,0.7193,3418.2,3417.5,0.7593]
[1732388857127,0.06542363,3418.0,3417.5,0.7593]
[1732388857369,0.06548019,3418.1,3417.5,0.7593]
[1732388857529,0.06536707,3417.9,3417.5,0.7593]
[1732388857725,0.06542363,3418.0,3417.5,0.7593]
[1732388857937,0.7193,3418.2,3417.5,0.7593]
[1732388858139,0.06536707,3417.9,3417.5,0.7593]
[1732388858348,0.7193,3418.6,3417.6,0.40874399]
[1732388858639,0.33773507,3418.5,3417.7,0.7657]
[1732388858862,0.27202867,3418.4,3417.7,0.7657]
[1732388859046,0.33757684,3418.3,3417.7,0.7657]
[1732388859250,0.06554817,3418.3,3417.7,0.7657]
[1732388859460,1.402291,3418.6,3417.7,0.7657]
[1732388859755,0.86842297,3418.5,3417.7,0.7657]
[1732388859958,0.06566126,3418.5,3417.8,0.7657]
[1732388860469,0.06560472,3418.4,3417.8,0.7657]
[1732388860671,0.7193,3418.9,3417.8,0.7657]
[1732388860857,0.33790003,3418.8,3417.8,0.7657]
[1732388861169,0.27206915,3418.7,3417.8,0.7657]
[1732388861368,0.27206915,3418.6,3417.8,0.7657]
[1732388861571,0.33778695,3418.6,3417.8,0.7657]
[1732388861781,0.27206915,3418.5,3417.8,0.7657]
[1732388862141,0.06560472,3418.4,3417.8,0.7657]
[1732388862542,0.7193,3418.9,3417.8,0.7657]
[1732388862743,0.06554817,3418.3,3417.8,0.7657]
[1732388862969,0.7193,3418.9,3417.8,0.7657]
[1732388863146,0.06549161,3418.2,3417.8,0.7657]
[1732388863340,0.7193,3418.9,3417.8,0.7657]
[1732388863581,3.7193,3418.7,3417.6,1.12547144]
[1732388863792,1.01903727,3418.6,3417.6,1.12547144]
[1732388863940,0.55,3418.4,3417.6,0.35977144]
[1732388864144,0.99166843,3418.3,3417.6,0.35977144]
[1732388864452,0.27236843,3418.2,3417.6,0.35977144]
[1732388864765,0.7193,3418.0,3417.6,0.35977144]
[1732388864977,0.27236843,3417.9,3417.6,0.35977144]
[1732388865279,0.33765333,3417.9,3417.6,0.35977144]
[1732388865485,0.27236843,3417.8,3417.6,0.35977144]
[1732388865793,0.06514804,3417.7,3417.6,0.35977144]
[1732388866080,0.33751647,3417.7,3417.6,0.35977144]
[1732388869786,0.7193,3417.6,3416.6,0.7589]
[1732388869961,0.97063708,3417.5,3416.6,0.7589]
[1732388870164,0.27236843,3417.4,3416.6,0.7589]
[1732388870365,0.76323523,3417.5,3416.6,0.7589]
[1732388870584,0.06484995,3417.3,3416.6,0.7589]
[1732388870786,0.06490653,3417.4,3416.6,0.7589]
[1732388870988,0.06479278,3417.2,3416.6,0.7589]
[1732388871163,0.23381204,3417.3,3416.6,0.7589]
[1732388871365,0.06473619,3417.1,3416.6,0.7589]
[1732388871695,0.0646686,3417.0,3416.6,1.16764399]
[1732388871990,0.7193,3417.6,3416.6,1.16764399]
[1732388872490,0.06295623,3417.5,3416.6,1.16764399]
[1732388875082,1.23060023,3417.5,3416.6,1.16764399]
[1732388875279,0.19499002,3417.4,3416.6,1.16764399]
[1732388875495,0.25597163,3417.4,3416.6,1.16764399]
[1732388877592,0.25597163,3417.4,3416.6,0.7589]
[1732388877798,0.06098161,3417.4,3416.6,0.2915]
[1732388877957,0.06098161,3417.4,3416.7,0.768]
[1732388878154,0.7193,3418.0,3416.7,0.768]
[1732388878362,1.167644,3417.8,3416.8,0.2915]
[1732388878659,0.27705298,3417.7,3416.9,0.768]
[1732388878897,0.06115712,3417.7,3416.9,0.768]
[1732388879398,0.06115712,3417.7,3417.0,0.2915]
[1732388879972,0.7193,3417.6,3417.0,0.2915]
[1732388880492,0.06104801,3417.5,3417.0,0.2915]
[1732388880880,0.06104801,3417.5,3417.1,0.768]
[1732388881071,0.768,3418.0,3417.1,0.768]
[1732388881380,0.05913351,3417.4,3417.1,0.768]
[1732388881567,0.14873,3417.9,3417.1,0.768]
[1732388881769,0.05907693,3417.3,3417.1,0.768]
[1732388881970,0.14873,3417.9,3417.1,0.768]
[1732388882203,0.05902034,3417.2,3417.1,0.768]
[1732388882502,0.163603,3417.8,3417.1,0.768]
[1732388882661,0.05736367,3417.2,3417.1,0.768]
[1732388882858,0.163603,3417.8,3417.1,0.768]
[1732388883067,0.05736367,3417.2,3417.1,0.768]
[1732388883303,0.163603,3417.8,3417.1,0.768]
[1732388883511,0.05736367,3417.2,3417.1,0.768]
[1732388883875,0.768,3418.2,3417.2,0.768]
[1732388884078,0.27255294,3418.1,3417.2,0.768]
[1732388884276,0.27255294,3418.0,3417.2,0.7972606]
[1732388884601,0.7193,3418.3,3417.2,0.768]
[1732388884801,0.2725947,3418.2,3417.2,0.768]
[1732388884975,0.2725947,3418.1,3417.2,0.768]
[1732388885181,0.2725947,3418.0,3417.2,0.768]
[1732388885378,0.7193,3418.3,3417.2,0.768]
[1732388885613,0.3305593,3418.2,3417.2,0.768]
[1732388885812,0.27261776,3418.1,3417.2,0.768]
[1732388886031,0.27261776,3418.0,3417.2,0.768]
[1732388886329,0.05782843,3418.0,3417.2,0.768]
[1732388886674,0.8709561,3418.3,3417.2,0.768]
[1732388887006,0.43946404,3418.2,3417.2,0.768]
[1732388887207,0.27264233,3418.1,3417.2,0.768]
[1732388887392,0.27264233,3418.0,3417.2,0.768]
[1732388887709,0.7193,3418.5,3417.2,0.768]
[1732388887710,0.05777187,3417.9,3417.3,0.7116757]
[1732388887906,0.7193,3418.8,3417.6,0.7512]
[1732388888136,0.27260864,3418.7,3417.6,0.78045586]
[1732388888337,0.27260864,3418.6,3417.6,0.78045586]
[1732388888633,0.7193,3419.0,3417.9,0.2915]
[1732388888836,1.07219294,3418.9,3417.9,0.2915]
[1732388888996,0.45168223,3418.8,3417.9,0.2915]
[1732388889209,0.33076995,3418.7,3417.9,0.2915]
[1732388889518,0.27253294,3418.6,3417.9,0.2915]
[1732388889835,0.05818047,3418.6,3417.9,0.2915]
[1732388889994,0.17914929,3418.8,3417.9,0.2915]
[1732388890348,0.3307202,3418.7,3418.0,0.2915]
[1732388890523,0.27248319,3418.6,3418.0,0.2915]
[1732388890837,0.05812393,3418.5,3418.0,0.2915]
[1732388891038,0.79966,3418.9,3418.0,0.2915]
[1732388891241,0.05806738,3418.4,3418.0,0.2915]
[1732388891432,0.79966,3418.9,3417.8,0.2915]
[1732388891752,0.05801083,3418.3,3418.1,0.7512]
[1732388891967,0.79966,3419.2,3418.1,0.7512]
[1732388892257,0.42430992,3419.1,3418.1,0.7512]
[1732388892400,0.27241392,3419.0,3418.1,0.7512]
[1732388892739,0.33085546,3418.9,3418.1,0.7512]
[1732388892929,0.27241392,3418.8,3418.1,0.7512]
[1732388893131,0.27241392,3418.7,3418.1,0.7512]
[1732388893334,0.05832847,3418.7,3418.1,0.7512]
[1732388893719,0.7193,3419.0,3418.1,0.7512]
[1732388894039,0.43941819,3418.9,3418.1,0.7512]
[1732388894239,0.27233259,3418.8,3418.1,0.7512]
[1732388894442,0.05838501,3418.8,3418.1,0.7512]
[1732388894645,1.51896,3419.2,3418.1,0.7512]
[1732388894851,0.05832847,3418.7,3418.1,0.7512]
[1732388895036,1.51896,3419.2,3418.1,0.7512]
[1732388895352,0.05827193,3418.6,3418.1,0.7512]
[1732388895588,0.17912175,3419.0,3418.1,0.7512]
[1732388895758,0.05821539,3418.5,3418.1,0.7512]
[1732388896087,0.05815884,3418.4,3418.1,0.7512]
[1732388896291,0.17912175,3419.0,3418.1,0.7512]
[1732388896589,0.05810229,3418.3,3418.1,0.7512]
[1732388896882,0.05805211,3418.2,3418.1,0.7512]
[1732388897079,0.17912175,3419.0,3418.1,0.7512]
[1732388897307,0.05805211,3418.2,3418.1,0.7512]
[1732388897591,0.17912175,3419.0,3418.1,0.7512]
[1732388897888,0.05844791,3418.9,3418.1,0.7512]
[1732388898049,0.05844791,3418.9,3418.2,0.7714]
[1732388898368,0.79966,3419.2,3418.2,0.7714]
[1732388898881,0.05856617,3419.1,3418.2,0.7714]
[1732388899579,0.7193,3419.0,3418.2,0.7714]
[1732388899896,0.21620573,3418.9,3418.2,0.7714]
[1732388900289,0.272077,3418.8,3418.2,0.7714]
[1732388900463,0.05839658,3418.8,3418.2,0.7714]
[1732388901066,0.27210251,3418.7,3418.2,0.7714]
[1732388901412,0.05833542,3418.7,3418.2,0.7714]
[1732388901769,0.15775262,3418.9,3418.2,0.7714]
[1732388901965,0.05827888,3418.6,3418.2,0.7714]
[1732388902167,0.15775262,3418.9,3418.2,0.7714]
[1732388902478,0.27220111,3418.8,3418.2,0.7714]
[1732388902677,0.27220111,3418.7,3418.2,0.7714]
[1732388902885,0.33053653,3418.7,3418.2,0.7714]
[1732388903099,0.99150111,3418.6,3417.9,0.7714]
[1732388903294,0.27220111,3418.5,3417.9,0.7714]
[1732388903491,0.3304136,3418.5,3417.9,0.7714]
[1732388903705,0.27220111,3418.4,3417.9,0.7714]
[1732388903873,0.33035705,3418.4,3417.9,0.7714]
[1732388904071,0.27220111,3418.3,3417.9,0.7714]
[1732388904284,0.3303005,3418.3,3417.9,0.7714]
[1732388904493,0.05809939,3418.3,3417.9,0.7714]
[1732388904665,0.87705262,3418.9,3417.9,0.7714]
[1732388904866,0.05804284,3418.2,3417.9,0.7714]
[1732388905071,0.87705262,3418.9,3417.9,0.7714]
[1732388905271,0.05797586,3418.1,3417.9,0.7714]
[1732388905583,0.87705262,3418.9,3417.9,0.7714]
[1732388905781,0.27243947,3418.8,3417.9,0.7714]
[1732388906001,0.27243947,3418.7,3417.9,0.7714]
[1732388906202,0.7193,3418.5,3417.3,0.2915]
[1732388906386,0.7193,3418.5,3417.6,0.7714]
[1732388906707,0.55,3418.3,3417.6,0.7714]
[1732388906913,0.43242791,3418.2,3416.9,0.7714]
[1732388907211,0.55,3418.0,3416.9,0.7714]
[1732388907382,1.2693,3417.8,3416.9,0.7714]
[1732388907585,0.48184796,3417.7,3416.9,0.7714]
[1732388907772,0.27267401,3417.6,3416.9,0.7714]
[1732388908092,0.05759246,3417.5,3416.9,0.7714]
[1732388908467,0.27264144,3417.4,3416.9,0.7714]
[1732388908671,0.27264144,3417.3,3416.9,0.7714]
[1732388908872,0.33012074,3417.3,3416.9,0.7714]
[1732388909178,0.0574793,3417.3,3416.9,0.7714]
[1732388909571,0.7193,3417.8,3416.9,0.7714]
[1732388909772,0.05741866,3417.2,3416.9,0.7714]
[1732388910011,0.7193,3418.5,3416.9,0.7714]
[1732388910312,0.27259298,3418.4,3417.1,0.7507]
[1732388910541,0.27259298,3418.3,3417.1,0.7507]
[1732388910667,0.27259298,3418.2,3417.1,0.7507]
[1732388910872,0.33059472,3418.2,3417.1,0.7507]
[1732388911117,0.27259298,3418.1,3417.1,0.7507]
[1732388911413,0.33053817,3418.1,3417.1,0.7507]
[1732388911581,0.27259298,3418.0,3417.1,0.7507]
[1732388911789,0.05794519,3418.1,3417.1,0.7507]
[1732388911991,0.05783206,3417.9,3417.1,0.7507]
[1732388912310,0.7193,3418.5,3417.1,0.7507]
[1732388912311,0.0577755,3417.8,3417.1,0.7507]
[1732388912467,0.55,3418.4,3417.1,0.7507]
[1732388912671,0.05771893,3417.7,3417.1,0.7507]
[1732388912979,0.55,3418.4,3417.1,0.7507]
[1732388913171,0.15419595,3418.2,3417.1,0.7507]
[1732388913372,0.27266364,3418.1,3417.1,0.7507]
[1732388913614,0.27266364,3418.0,3417.1,0.7507]
[1732388913977,0.05783206,3417.9,3417.1,0.74117872]
[1732388914320,0.27266364,3417.8,3417.1,0.74117872]
[1732388914512,0.33043914,3417.8,3417.1,0.74117872]
[1732388914713,0.27266364,3417.7,3417.1,0.74117872]
[1732388914931,0.33038257,3417.7,3417.1,0.74117872]
[1732388915230,0.05771893,3417.7,3417.1,0.74117872]
[1732388915731,0.05762358,3417.6,3417.1,0.74117872]
[1732388916034,0.7288,3417.9,3417.1,0.74117872]
[1732388916237,0.05756585,3417.5,3417.1,0.74117872]
[1732388916403,0.7288,3417.9,3417.1,0.74117872]
[1732388916738,0.27263799,3417.8,3417.1,0.74117872]
[1732388916941,0.27263799,3417.7,3417.1,0.74117872]
[1732388917231,0.33031698,3417.7,3417.1,0.74117872]
[1732388917435,0.05767899,3417.7,3417.1,0.74117872]
[1732388917598,0.7288,3417.9,3417.1,0.74117872]
[1732388917795,0.27261899,3417.8,3417.1,0.74117872]
[1732388918108,0.27261899,3417.7,3417.1,0.74117872]
[1732388918298,0.33029798,3417.7,3417.1,0.74117872]
[1732388918629,0.05767899,3417.7,3417.1,0.74117872]
[1732388919038,0.7288,3417.9,3417.1,0.74117872]
[1732388919197,0.27260154,3417.8,3417.2,0.2915]
[1732388919401,0.33028053,3417.7,3417.2,0.2915]
[1732388919598,0.05767899,3417.7,3417.2,0.2915]
[1732388919839,0.7288,3417.9,3417.2,0.2915]
[1732388920136,0.33033067,3417.8,3417.1,0.74117872]
[1732388920440,0.27259511,3417.7,3417.1,0.74117872]
[1732388920609,0.05773556,3417.8,3417.1,0.74117872]
[1732388920809,0.05762242,3417.6,3417.1,0.74117872]
[1732388921004,0.05756585,3417.5,3417.1,0.74117872]
[1732388921309,0.7288,3417.9,3417.1,0.74117872]
[1732388921505,0.05750927,3417.4,3417.1,0.74117872]
[1732388921839,0.7288,3417.9,3417.1,0.74117872]
[1732388922012,0.05745268,3417.3,3417.1,0.74117872]
[1732388922202,0.7288,3417.9,3417.1,0.74117872]
[1732388922400,0.0573961,3417.2,3417.1,0.74117872]
[1732388922936,0.7288,3417.9,3417.1,0.74117872]
[1732388923140,0.0573961,3417.2,3417.1,0.74117872]
[1732388923433,0.7288,3417.9,3417.1,0.74117872]
[1732388923849,0.05773556,3417.8,3417.1,0.74117872]
[1732388924938,0.05773556,3417.8,3416.6,0.82]
[1732388925249,0.27266534,3417.7,3416.6,0.82]
[1732388925574,0.27266534,3417.6,3416.6,0.82]
[1732388926042,0.05755137,3417.5,3416.6,0.82]
[1732388926230,0.27266534,3417.4,3416.6,0.82]
[1732388926425,1.00146534,3417.3,3416.6,0.82]
[1732388926632,0.27266534,3417.2,3416.6,0.82]
[1732388926841,0.05732504,3417.1,3416.6,0.82]
[1732388927042,0.05732504,3417.1,3415.7,0.40874399]
[1732388927043,0.05732504,3417.1,3416.0,0.2915]
[1732388927217,0.27266534,3417.0,3416.0,1.1045]
[1732388927551,0.05718001,3416.9,3416.0,1.1045]
[1732388927751,0.05718001,3416.9,3416.1,0.68241626]
[1732388927912,0.7288,3417.3,3416.2,0.813]
[1732388928112,0.7288,3417.3,3416.2,1.20391626]
[1732388928113,0.05710835,3416.8,3416.2,1.20391626]
[1732388928340,0.7288,3417.3,3416.3,0.813]
[1732388928612,0.05705175,3416.7,3416.3,0.813]
[1732388928813,0.05699514,3416.6,3416.3,0.813]
[1732388929057,0.7288,3417.3,3416.3,0.813]
[1732388929368,0.05693853,3416.5,3416.3,0.813]
[1732388929575,0.27272328,3417.2,3416.3,0.813]
[1732388929794,0.27268984,3417.1,3416.3,0.813]
[1732388930063,0.05727814,3417.1,3416.3,0.813]
[1732388930275,0.27269678,3417.0,3416.3,0.813]
[1732388930459,0.32991833,3417.0,3416.3,0.813]
[1732388930630,0.05722155,3417.0,3416.3,0.813]
[1732388930984,0.7288,3417.3,3416.3,0.813]
[1732388931267,0.27273078,3417.2,3416.3,0.813]
[1732388931455,0.27273078,3417.1,3416.3,0.813]
[1732388931662,0.27273078,3417.1,3416.4,0.02926807]
[1732388931969,0.7288,3418.1,3416.7,0.2915]
[1732388932268,0.27272946,3418.0,3417.0,1.1045]
[1732388932783,0.27272946,3417.9,3417.0,1.1045]
[1732388932988,0.27272946,3417.8,3417.0,1.1045]
[1732388933337,0.27272946,3417.7,3417.0,1.1045]
[1732388933564,0.27272946,3418.0,3417.0,1.1045]
[1732388933837,0.27272946,3417.9,3417.0,1.1045]
[1732388934080,0.27272946,3417.8,3417.0,1.1045]
[1732388934463,0.33040365,3417.8,3417.0,1.1045]
[1732388934667,0.27272946,3417.7,3417.0,1.1045]
[1732388934847,0.05756105,3417.6,3417.0,1.1045]
[1732388935353,0.7288,3418.1,3417.0,1.1045]
[1732388935684,0.27294875,3418.0,3417.0,1.1045]
[1732388935979,0.27294875,3417.9,3417.0,1.1045]
[1732388936145,0.05778732,3418.0,3417.0,1.1045]
[1732388936348,0.05767419,3417.8,3417.0,1.1045]
[1732388936649,0.27301888,3417.7,3417.0,1.1045]
[1732388936862,0.33057993,3417.6,3417.0,1.1045]
[1732388937081,0.27301888,3417.5,3417.0,1.1045]
[1732388937578,0.33052335,3417.5,3417.0,1.1045]
[1732388937780,0.05750447,3417.5,3417.0,1.1045]
[1732388937982,0.273033,3417.4,3417.0,1.1045]
[1732388938179,0.7288,3418.1,3417.0,1.1045]
[1732388938382,0.05739131,3417.3,3417.0,1.1045]
[1732388938539,0.7288,3418.1,3417.0,1.1045]
[1732388938741,0.05733473,3417.2,3417.0,1.1045]
[1732388939078,0.7288,3418.1,3417.0,1.1045]
[1732388939250,0.27304234,3418.0,3417.0,1.1045]
[1732388939451,0.05727814,3417.1,3417.0,1.1045]
[1732388939653,0.7288,3418.1,3417.0,1.1045]
[1732388939855,0.27304484,3418.0,3417.0,1.1045]
[1732388940179,0.27304484,3417.9,3417.1,0.7607]
[1732388940383,0.27304484,3417.8,3417.1,0.7607]
[1732388940539,0.05761923,3417.8,3417.1,0.7607]
[1732388940735,0.2730472,3417.7,3417.1,0.7607]
[1732388940988,0.2730472,3417.6,3417.1,0.7607]
[1732388941341,0.33049671,3417.5,3417.1,0.7607]
[1732388941550,0.05744951,3417.5,3417.1,0.7607]
[1732388941751,0.7288,3418.1,3417.1,0.7607]